bitfinex/quotes_BTCUSD_20250226
["timestamp","ask_amount","ask_price","bid_price","bid_amount"]
[1740531979161,0.169605,88441.0,88425.0,0.02136588]
[1740531979982,0.3,88444.0,88425.0,0.02136588]
[1740531980170,0.1,88472.0,88419.0,0.04958316]
[1740531980371,0.00370089,88444.0,88430.0,0.169625]
[1740531980583,0.00370089,88444.0,88419.0,0.048]
[1740531980795,0.170008,88452.0,88435.0,0.169614]
[1740531981036,0.000424,88452.0,88440.0,0.169605]
[1740531981240,0.002,88444.0,88436.0,0.0996614]
[1740531981438,0.000424,88452.0,88437.0,0.226149]
[1740531981696,0.170009,88452.0,88436.0,0.252313]
[1740531981871,0.002,88444.0,88436.0,0.252313]
[1740531982267,0.002,88444.0,88437.0,0.0252313]
[1740531982441,0.169606,88441.0,88437.0,0.0268142]
[1740531982583,0.169608,88439.0,88438.0,0.00082261]
[1740531982783,0.004,88444.0,88418.0,0.083548]
[1740531982985,0.226149,88437.0,88421.0,0.00550036]
[1740531983199,0.169644,88420.0,88419.0,9.016e-05]
[1740531983831,0.17334518,88420.0,88419.0,9.016e-05]
[1740531984630,0.17434518,88420.0,88419.0,0.00709016]
[1740531985057,0.17334518,88420.0,88419.0,9.016e-05]
[1740531985372,0.17334518,88420.0,88419.0,0.00409016]
[1740531985711,0.169644,88420.0,88419.0,9.016e-05]
[1740531986312,0.169639,88423.0,88419.0,9.016e-05]
[1740531986637,0.169637,88424.0,88419.0,9.016e-05]
[1740531986880,0.169621,88433.0,88419.0,9.016e-05]
[1740531987068,0.02104538,88446.0,88419.0,9.016e-05]
[1740531987069,0.02104538,88446.0,88421.0,0.0791]
[1740531987289,0.169618,88434.0,88421.0,0.0791]
[1740531987511,0.02104538,88446.0,88422.0,0.00605211]
[1740531987720,0.001,88423.0,88422.0,0.00605211]
[1740531987932,0.001,88423.0,88421.0,0.0791]
[1740531988104,0.001,88423.0,88422.0,0.01421424]
[1740531988506,0.169619,88433.0,88422.0,0.01421424]
[1740531988702,0.169621,88432.0,88422.0,0.01521424]
[1740531988906,0.03137021,88446.0,88422.0,0.01521424]
[1740531988907,0.169639,88423.0,88422.0,0.01521424]
[1740531989259,0.169637,88425.0,88422.0,0.001]
[1740531989384,0.169639,88423.0,88422.0,0.001]
[1740531989995,0.169644,88420.0,88419.0,9.016e-05]
[1740531991677,0.170644,88420.0,88419.0,0.00609016]
[1740531991879,0.170644,88420.0,88419.0,9.016e-05]
[1740531993332,0.171644,88420.0,88419.0,0.00609016]
[1740531993807,0.169644,88420.0,88419.0,9.016e-05]
[1740531994144,0.001,88420.0,88419.0,0.00509016]
[1740531994350,0.169644,88421.0,88419.0,9.016e-05]
[1740531994571,0.169637,88424.0,88419.0,0.00509016]
[1740531994941,0.001,88420.0,88419.0,9.016e-05]
[1740531995113,0.170644,88420.0,88419.0,9.016e-05]
[1740531996964,0.171644,88420.0,88419.0,0.00409016]
[1740531999514,0.17534541,88420.0,88419.0,0.00409016]
[1740532000747,0.36420141,88420.0,88417.0,3.6e-07]
[1740532000896,0.36420141,88420.0,88403.0,0.000848]
[1740532000897,0.169675,88404.0,88403.0,0.000848]
[1740532001282,0.469675,88404.0,88403.0,0.000848]
[1740532002120,0.47337641,88404.0,88403.0,0.000848]
[1740532002984,0.47337641,88404.0,88403.0,0.002848]
[1740532012120,0.17337641,88404.0,88403.0,0.002848]
[1740532012291,0.169675,88404.0,88403.0,0.002848]
[1740532023188,0.226231,88405.0,88403.0,0.002848]
[1740532023556,0.169675,88404.0,88403.0,0.002848]
[1740532024278,0.169675,88404.0,88403.0,0.000848]
[1740532024702,0.169675,88404.0,88403.0,0.001848]
[1740532024841,0.169675,88404.0,88403.0,0.000848]
[1740532025247,0.469675,88404.0,88403.0,0.002848]
[1740532028568,0.4700991,88404.0,88403.0,0.002848]
[1740532031805,0.3004241,88404.0,88390.0,0.0008482]
[1740532031933,0.169698,88392.0,88390.0,0.0008482]
[1740532033138,0.3,88409.0,88391.0,0.00097461]
[1740532033342,0.169698,88392.0,88391.0,0.00097461]
[1740532033746,0.170698,88392.0,88391.0,0.00097461]
[1740532034205,0.169698,88392.0,88391.0,0.00097461]
[1740532034795,0.18837475,88392.0,88391.0,0.00097461]
[1740532035340,0.19207823,88392.0,88391.0,0.00097461]
[1740532036187,0.3,88394.0,88391.0,0.00097461]
[1740532036391,0.469698,88392.0,88391.0,0.00097461]
[1740532037284,0.48786066,88392.0,88391.0,0.00097461]
[1740532044182,0.31816266,88392.0,88391.0,0.00097461]
[1740532044372,0.31816266,88392.0,88391.0,0.08287461]
[1740532044572,0.31816266,88392.0,88391.0,0.09124689]
[1740532045058,0.31816266,88392.0,88391.0,0.09735429]
[1740532045347,0.31816266,88392.0,88391.0,0.09124689]
[1740532046035,0.31787983,88392.0,88391.0,0.09124689]
[1740532046455,0.48757783,88392.0,88391.0,0.09124689]
[1740532046603,0.18786066,88392.0,88391.0,0.09124689]
[1740532046805,0.18786066,88392.0,88391.0,0.09819193]
[1740532047007,0.18786066,88392.0,88391.0,0.09124689]
[1740532047926,0.18786066,88392.0,88391.0,0.09735429]
[1740532048131,0.18786066,88392.0,88391.0,0.09124689]
[1740532049080,0.48786066,88392.0,88391.0,0.09124689]
[1740532050371,0.31816266,88392.0,88391.0,0.09124689]
[1740532050580,0.31816266,88392.0,88391.0,0.13874689]
[1740532050969,0.31816266,88392.0,88391.0,0.14485085]
[1740532051428,0.01816266,88392.0,88391.0,0.14485085]
[1740532051609,0.00842189,88406.0,88391.0,0.14485085]
[1740532051831,0.00842189,88406.0,88392.0,0.01456991]
[1740532052032,0.30842189,88406.0,88393.0,0.00610243]
[1740532052243,0.169694,88394.0,88393.0,0.00610243]
[1740532054172,0.02123135,88404.0,88393.0,0.00610243]
[1740532054370,0.02123135,88404.0,88395.0,0.0484]
[1740532054577,0.01923135,88404.0,88397.0,0.0796]
[1740532054958,0.01923135,88404.0,88399.0,0.0796]
[1740532055383,0.01923135,88404.0,88400.0,0.00609707]
[1740532055810,0.169681,88401.0,88400.0,0.00609707]
[1740532056184,0.3,88402.0,88385.0,0.00158372]
[1740532056407,0.3,88402.0,88388.0,0.169706]
[1740532056612,0.01923135,88404.0,88392.0,0.04152288]
[1740532056817,0.01923135,88404.0,88392.0,0.00768693]
[1740532057408,0.01923135,88404.0,88393.0,0.169694]
[1740532057615,0.001,88402.0,88393.0,0.00158362]
[1740532057842,0.001,88402.0,88394.0,0.00610167]
[1740532058047,0.01923135,88404.0,88395.0,0.04213143]
[1740532058246,0.01923135,88404.0,88395.0,0.00158362]
[1740532058892,0.001,88402.0,88396.0,0.00610013]
[1740532059101,0.001,88402.0,88396.0,0.00768375]
[1740532059840,0.001,88402.0,88399.0,0.169684]
[1740532059991,0.001,88402.0,88400.0,0.04036257]
[1740532060201,0.0004241,88404.0,88401.0,0.00158351]
[1740532060402,0.0004241,88404.0,88401.0,0.17126451]
[1740532060603,0.0004241,88404.0,88402.0,0.00608452]
[1740532060988,0.0004241,88404.0,88402.0,0.00508452]
[1740532061408,0.0004241,88404.0,88397.0,0.00158351]
[1740532061568,0.0004241,88404.0,88403.0,0.00599917]
[1740532061773,0.0004241,88404.0,88398.0,0.26804972]
[1740532061774,0.0004241,88404.0,88401.0,0.00158351]
[1740532062028,0.0004241,88404.0,88403.0,0.00599917]
[1740532062486,0.0004241,88404.0,88399.0,0.00158351]
[1740532062685,0.0004241,88404.0,88400.0,0.00600147]
[1740532062913,0.0004241,88404.0,88398.0,0.04180072]
[1740532063119,0.0004241,88404.0,88401.0,0.0060007]
[1740532063295,0.0004241,88404.0,88399.0,0.01564284]
[1740532063791,0.0004241,88404.0,88401.0,0.001]
[1740532064204,0.0004241,88404.0,88402.0,0.00599994]
[1740532064399,0.0004241,88404.0,88399.0,0.01664284]
[1740532064610,0.0004241,88404.0,88400.0,0.01085754]
[1740532065003,0.0004241,88404.0,88401.0,0.002]
[1740532065402,0.0004241,88404.0,88400.0,0.01085754]
[1740532067456,0.0004241,88404.0,88401.0,0.0070007]
[1740532067657,0.0004241,88404.0,88401.0,0.0060007]
[1740532067862,0.0004241,88404.0,88403.0,0.0494]
[1740532068093,0.0004241,88404.0,88403.0,0.15384921]
[1740532068303,0.0004241,88404.0,88403.0,0.13799917]
[1740532070351,0.0004241,88404.0,88403.0,0.13899917]
[1740532078318,0.0004241,88404.0,88403.0,0.30867617]
[1740532078523,0.0004241,88404.0,88403.0,0.13899917]
[1740532078853,0.0004241,88404.0,88403.0,0.16994235]
[1740532079055,0.0004241,88404.0,88403.0,0.33961935]
[1740532079448,0.0004241,88404.0,88403.0,0.16994235]
[1740532080288,0.0004241,88404.0,88403.0,0.33961935]
[1740532080650,0.0004241,88404.0,88403.0,0.16994235]
[1740532080857,0.0004241,88404.0,88403.0,0.13899917]
[1740532081718,0.0004241,88404.0,88403.0,0.13799917]
[1740532083257,0.0004241,88404.0,88403.0,0.14299917]
[1740532083809,0.0004241,88404.0,88403.0,0.31267617]
[1740532084016,0.0004241,88404.0,88403.0,0.44096455]
[1740532084364,0.0004241,88404.0,88403.0,0.85641358]
[1740532085085,0.0004241,88417.0,88416.0,0.169652]
[1740532085214,0.0004241,88417.0,88416.0,0.41019953]
[1740532085594,0.0004241,88417.0,88416.0,0.43071948]
[1740532086374,0.0004241,88417.0,88416.0,0.45102183]
[1740532086790,0.000424,88452.0,88422.0,0.169641]
[1740532086933,0.000424,88452.0,88422.0,0.75041216]
[1740532087319,0.000424,88452.0,88422.0,0.75479768]
[1740532087451,0.01814697,88447.0,88422.0,0.75479768]
[1740532087653,0.000424,88452.0,88422.0,0.75479768]
[1740532088102,0.00048105,88423.0,88422.0,0.75479768]
[1740532088318,0.00048105,88423.0,88422.0,0.76179768]
[1740532090153,0.00048105,88423.0,88422.0,0.75479768]
[1740532090539,0.00148105,88423.0,88422.0,0.76179768]
[1740532090776,0.00148105,88423.0,88422.0,0.75479768]
[1740532090984,0.00048105,88423.0,88422.0,0.75479768]
[1740532091184,0.02315643,88447.0,88424.0,0.0764]
[1740532091358,5.699e-05,88447.0,88428.0,0.01454085]
[1740532091697,0.02320975,88447.0,88442.0,0.169601]
[1740532091842,0.02320975,88447.0,88443.0,0.08235218]
[1740532092460,0.3,88457.0,88443.0,0.08235218]
[1740532092661,0.00041979,88453.0,88443.0,0.0764]
[1740532092863,0.00041979,88453.0,88444.0,0.03053905]
[1740532093477,0.00041979,88453.0,88444.0,0.0246011]
[1740532093678,0.00041979,88453.0,88452.0,0.246983]
[1740532094104,0.00041979,88453.0,88452.0,0.25291194]
[1740532095338,0.00141979,88453.0,88452.0,0.25991194]
[1740532095552,0.00041979,88453.0,88452.0,0.2857544]
[1740532097550,0.00041979,88453.0,88452.0,0.2927544]
[1740532097793,0.00041979,88453.0,88452.0,0.2857544]
[1740532097971,0.00041979,88453.0,88452.0,0.78804278]
[1740532098182,0.00041979,88453.0,88452.0,0.79504278]
[1740532098384,0.00041979,88453.0,88452.0,0.78804278]
[1740532098743,0.00041979,88453.0,88452.0,0.79504278]
[1740532099249,0.00084389,88453.0,88452.0,0.79504278]
[1740532100099,0.00084389,88453.0,88452.0,0.79784278]
[1740532100307,0.00084389,88453.0,88452.0,0.80484278]
[1740532101097,0.00084389,88453.0,88452.0,0.79784278]
[1740532101422,0.00084389,88453.0,88452.0,0.80484278]
[1740532101784,0.00084389,88453.0,88452.0,0.79784278]
[1740532101987,0.00084389,88453.0,88452.0,0.80484278]
[1740532102187,0.00084389,88453.0,88452.0,1.10484278]
[1740532102382,0.169493,88499.0,88452.0,1.10484278]
[1740532102383,0.3,88500.0,88458.0,0.0754]
[1740532102582,0.00012589,88487.0,88478.0,0.0754]
[1740532103036,0.00012589,88487.0,88479.0,0.00589928]
[1740532103259,0.00012589,88487.0,88478.0,0.0754]
[1740532103455,0.02305324,88487.0,88480.0,0.00589852]
[1740532103621,0.00012589,88487.0,88479.0,0.03874174]
[1740532103839,0.00012589,88487.0,88481.0,0.00589776]
[1740532104052,0.00012589,88487.0,88486.0,0.169518]
[1740532104263,0.00012589,88487.0,88486.0,0.20982066]
[1740532104433,0.00012589,88487.0,88486.0,0.21571459]
[1740532105279,0.00012589,88487.0,88486.0,0.05219659]
[1740532105452,0.00012589,88487.0,88486.0,0.01189393]
[1740532107963,0.00012589,88487.0,88486.0,0.0127012]
[1740532108363,0.00012589,88487.0,88486.0,0.0067012]
[1740532108927,0.00012589,88487.0,88486.0,0.0127012]
[1740532109143,0.00012589,88487.0,88486.0,0.006]
[1740532109320,0.00012589,88487.0,88478.0,0.0754]
[1740532109526,0.00012589,88487.0,88482.0,0.169524]
[1740532109722,0.00012589,88487.0,88486.0,0.006]
[1740532109936,0.00012589,88487.0,88486.0,0.01187948]
[1740532110147,0.00012589,88487.0,88486.0,0.18139748]
[1740532110351,0.00012589,88487.0,88486.0,0.01187948]
[1740532110555,0.00012589,88487.0,88486.0,0.05262353]
[1740532110977,0.00012589,88487.0,88486.0,0.22214153]
[1740532111310,0.00012589,88487.0,88486.0,0.25119748]
[1740532111499,0.00054979,88487.0,88486.0,0.29639748]
[1740532111697,0.00054979,88487.0,88486.0,0.74978586]
[1740532113174,0.00054979,88487.0,88486.0,0.75678586]
[1740532114291,0.00054979,88487.0,88486.0,0.77991618]
[1740532114514,0.00054979,88487.0,88486.0,0.75678586]
[1740532115343,0.00054979,88487.0,88486.0,0.45897948]
[1740532115502,0.00054979,88487.0,88486.0,0.41377948]
[1740532117173,0.00054979,88487.0,88486.0,0.58329748]
[1740532117649,0.00054979,88487.0,88486.0,0.64683833]
[1740532117853,0.00054979,88487.0,88486.0,0.76058586]
[1740532118636,0.00054979,88487.0,88486.0,0.59106786]
[1740532119213,0.00054979,88487.0,88486.0,0.46277948]
[1740532119388,0.00054979,88487.0,88486.0,0.63229748]
[1740532119598,0.44527927,88503.0,88489.0,0.169512]
[1740532119757,0.27579327,88503.0,88486.0,0.46277948]
[1740532119952,0.27579327,88503.0,88490.0,0.00586906]
[1740532120158,0.27579327,88503.0,88489.0,0.16951]
[1740532120354,0.27579327,88503.0,88491.0,0.17537529]
[1740532120559,0.169482,88505.0,88491.0,0.169507]
[1740532120769,0.169482,88505.0,88492.0,0.00586753]
[1740532120967,0.19243527,88506.0,88492.0,0.17537353]
[1740532121370,0.169482,88505.0,88492.0,0.00586753]
[1740532121769,0.02295527,88506.0,88492.0,0.00586753]
[1740532122102,0.3,88506.0,88494.0,0.0791]
[1740532122306,0.3,88506.0,88496.0,0.225998]
[1740532122636,0.3,88515.0,88497.0,0.00586371]
[1740532122749,0.3,88511.0,88497.0,0.17535871]
[1740532122966,0.32316924,88511.0,88500.0,0.169491]
[1740532123166,0.32316924,88511.0,88498.0,0.00586294]
[1740532123370,0.32316924,88511.0,88507.0,0.169476]
[1740532123566,0.32316924,88511.0,88499.0,0.01176563]
[1740532123767,0.02316924,88511.0,88508.0,0.0058553]
[1740532124008,0.0004241,88512.0,88504.0,0.225977]
[1740532124211,0.0004241,88512.0,88509.0,0.00585454]
[1740532124416,0.0004241,88512.0,88510.0,0.01456643]
[1740532124648,0.0004241,88512.0,88510.0,0.00585377]
[1740532124937,0.0004241,88512.0,88504.0,0.225977]
[1740532125136,0.0004241,88512.0,88506.0,0.169478]
[1740532125352,0.0004241,88512.0,88507.0,0.00585606]
[1740532125485,0.00032761,88512.0,88509.0,0.0781]
[1740532125686,0.00032761,88512.0,88510.0,0.00585377]
[1740532126222,0.29724799,88520.0,88511.0,0.16947]
[1740532126421,0.00012584,88523.0,88510.0,0.00585377]
[1740532126643,0.10985249,88531.0,88515.0,0.169461]
[1740532126866,0.225903,88534.0,88511.0,0.00585301]
[1740532127037,0.0177203,88540.0,88516.0,0.00584919]
[1740532127244,0.0177203,88540.0,88519.0,0.169455]
[1740532127492,0.16943,88532.0,88519.0,0.169455]
[1740532127623,0.225889,88539.0,88520.0,0.00584613]
[1740532127819,0.169426,88534.0,88520.0,0.00584613]
[1740532128024,0.169425,88535.0,88520.0,0.17529913]
[1740532128340,0.3,88537.0,88520.0,0.17529813]
[1740532128561,0.169423,88536.0,88520.0,0.17529813]
[1740532128961,0.469421,88537.0,88520.0,0.17529813]
[1740532129166,0.469421,88537.0,88518.0,0.22594]
[1740532129167,0.32345154,88537.0,88519.0,0.00158152]
[1740532129363,0.02345154,88537.0,88521.0,0.08243119]
[1740532129686,0.0177203,88540.0,88521.0,0.0766]
[1740532129838,0.0177203,88540.0,88522.0,0.00582901]
[1740532130040,0.0177203,88540.0,88527.0,0.169438]
[1740532130240,0.0177203,88540.0,88523.0,0.03549564]
[1740532130445,0.0177203,88540.0,88510.0,0.3251]
[1740532130446,0.469436,88529.0,88528.0,0.00582443]
[1740532130670,0.169439,88527.0,88512.0,0.0768]
[1740532130841,0.225917,88529.0,88512.0,0.0768]
[1740532131045,0.169439,88528.0,88513.0,0.22006447]
[1740532131245,0.3,88530.0,88513.0,0.05059847]
[1740532131452,0.3,88532.0,88513.0,0.05059847]
[1740532131659,0.16945,88522.0,88513.0,0.05059847]
[1740532131862,0.0268,88534.0,88514.0,0.01268098]
[1740532132062,0.0268,88534.0,88515.0,0.00583318]
[1740532132273,0.16945,88522.0,88515.0,0.00583318]
[1740532132745,0.0268,88534.0,88515.0,0.00583318]
[1740532132928,0.0268,88534.0,88516.0,0.042054]
[1740532133127,0.169454,88520.0,88517.0,0.00583165]
[1740532133381,0.169451,88522.0,88517.0,0.00583165]
[1740532133723,0.225929,88524.0,88517.0,0.00583165]
[1740532133918,0.225929,88524.0,88516.0,0.042054]
[1740532134123,0.169446,88524.0,88517.0,0.02122121]
[1740532134330,0.3268,88534.0,88517.0,0.01938956]
[1740532134544,0.3,88528.0,88517.0,0.01938956]
[1740532134752,0.169444,88525.0,88518.0,0.00583281]
[1740532134944,0.3,88528.0,88519.0,0.00980224]
[1740532135172,0.3,88529.0,88520.0,0.00583129]
[1740532135661,0.3,88529.0,88519.0,0.00980224]
[1740532135867,0.3,88529.0,88521.0,0.00583047]
[1740532136069,0.0181438,88540.0,88521.0,0.046]
[1740532136268,0.3,88537.0,88522.0,0.03808147]
[1740532136595,0.3,88537.0,88523.0,0.169446]
[1740532136894,0.3,88537.0,88523.0,0.169447]
[1740532137093,0.3,88535.0,88524.0,0.00582818]
[1740532137301,0.3,88536.0,88521.0,0.046]
[1740532137451,0.169425,88535.0,88521.0,0.046]
[1740532137656,0.169425,88535.0,88522.0,0.00582971]
[1740532137862,0.469423,88536.0,88522.0,0.00582971]
[1740532138495,0.469423,88536.0,88523.0,0.001]
[1740532138803,0.469423,88536.0,88524.0,0.00582818]
[1740532139175,0.469423,88536.0,88521.0,0.046]
[1740532139381,0.02323933,88537.0,88526.0,0.225922]
[1740532139578,0.0181438,88540.0,88529.0,0.169435]
[1740532140135,0.0181438,88540.0,88531.0,0.0831]
[1740532140278,0.0181438,88540.0,88532.0,0.00581717]
[1740532140946,0.02381275,88540.0,88531.0,0.0831]
[1740532141219,0.0004235,88540.0,88537.0,0.0477]
[1740532141667,0.0004235,88540.0,88538.0,0.00581259]
[1740532141886,0.469416,88539.0,88538.0,0.01947385]
[1740532142067,0.469416,88539.0,88538.0,0.01366126]
[1740532143300,0.3,88539.0,88538.0,0.01366126]
[1740532143714,0.469416,88539.0,88538.0,0.01366126]
[1740532144213,0.3,88539.0,88538.0,0.01366126]
[1740532144517,0.29990353,88539.0,88538.0,0.01366126]
[1740532144728,0.29990353,88539.0,88538.0,0.01666126]
[1740532144926,0.0004235,88540.0,88538.0,0.01666126]
[1740532145150,0.0004235,88540.0,88539.0,0.08739395]
[1740532146276,0.0004235,88540.0,88539.0,0.30290995]
[1740532146690,0.0004235,88540.0,88539.0,0.62800995]
[1740532147025,0.0004241,88542.0,88540.0,0.01454085]
[1740532147233,0.00840324,88601.0,88545.0,0.4229]
[1740532147597,0.00840324,88601.0,88541.0,1.08682813]
[1740532147598,0.00084373,88576.0,88558.0,0.0828]
[1740532147888,0.00084373,88576.0,88556.0,0.0461]
[1740532147889,0.00084373,88576.0,88563.0,0.01454085]
[1740532148010,0.00084373,88576.0,88562.0,0.0828]
[1740532148208,0.00084373,88576.0,88564.0,0.00576314]
[1740532148435,0.00084373,88576.0,88565.0,0.169365]
[1740532148636,0.00084373,88576.0,88568.0,0.16936]
[1740532148880,0.00084373,88576.0,88565.0,0.00576238]
[1740532149087,0.00084373,88576.0,88569.0,0.17511165]
[1740532149289,0.00084373,88576.0,88570.0,0.169357]
[1740532149532,0.00084373,88576.0,88570.0,0.17510889]
[1740532149816,0.00084373,88576.0,88570.0,0.17510689]
[1740532149993,0.00084373,88576.0,88571.0,0.169354]
[1740532150395,0.00084373,88576.0,88573.0,0.079]
[1740532150791,0.00084373,88576.0,88574.0,0.00574883]
[1740532151917,7e-05,88595.0,88574.0,0.00574883]
[1740532151918,0.169319,88590.0,88574.0,0.00574883]
[1740532152120,0.169319,88591.0,88574.0,0.17509783]
[1740532152293,0.02858186,88590.0,88574.0,0.00574883]
[1740532152491,0.00054943,88592.0,88575.0,0.00917488]
[1740532152696,0.00054943,88592.0,88576.0,0.17509231]
[1740532152876,0.02971448,88592.0,88576.0,0.00574731]
[1740532153501,0.169323,88588.0,88576.0,0.00574731]
[1740532153700,0.02971448,88592.0,88577.0,0.02702752]
[1740532153904,0.225756,88591.0,88578.0,0.00572469]
[1740532154106,0.169328,88586.0,88567.0,0.0819]
[1740532154437,0.02971448,88592.0,88576.0,0.001]
[1740532154627,0.169337,88581.0,88576.0,0.001]
[1740532154773,0.16933,88585.0,88567.0,0.251262]
[1740532154971,0.16933,88585.0,88568.0,0.0251262]
[1740532155171,0.02971448,88592.0,88568.0,0.03351769]
[1740532155372,0.169341,88579.0,88576.0,0.003]
[1740532155636,0.225775,88584.0,88576.0,0.003]
[1740532155830,0.02971448,88592.0,88576.0,0.003]
[1740532156032,0.02971448,88592.0,88577.0,0.1257]
[1740532156236,0.169323,88588.0,88578.0,0.03545]
[1740532156447,0.02971448,88592.0,88578.0,0.04657268]
[1740532156653,0.02971448,88592.0,88578.0,0.01112268]
[1740532157273,0.02971448,88592.0,88579.0,0.169339]
[1740532157485,0.02971448,88592.0,88578.0,0.18046368]
[1740532157679,0.02971448,88592.0,88580.0,0.01111797]
[1740532157916,0.169323,88588.0,88581.0,0.0137818]
[1740532158121,0.22576,88590.0,88581.0,0.02489616]
[1740532158268,0.25546848,88592.0,88581.0,0.02489616]
[1740532158473,0.16933,88585.0,88581.0,0.02489616]
[1740532158698,0.16933,88585.0,88581.0,0.0137818]
[1740532158898,0.16933,88584.0,88582.0,0.0255607]
[1740532159101,0.169329,88585.0,88582.0,0.01444818]
[1740532159477,0.02971448,88592.0,88582.0,0.01444818]
[1740532159848,0.00054943,88592.0,88583.0,0.08611017]
[1740532160024,0.00054943,88592.0,88584.0,0.03773247]
[1740532160425,0.00054943,88592.0,88591.0,0.169317]
[1740532160627,0.00054943,88592.0,88585.0,0.01110694]
[1740532160781,0.00054943,88592.0,88591.0,0.01109588]
[1740532160984,0.00054943,88592.0,88583.0,0.075]
[1740532160985,0.16933,88584.0,88583.0,0.075]
[1740532161327,0.16933,88584.0,88583.0,0.01252464]
[1740532161525,0.00054943,88592.0,88583.0,0.01252464]
[1740532161686,0.225756,88591.0,88583.0,0.01252464]
[1740532161883,0.169329,88585.0,88583.0,0.01252464]
[1740532162108,0.16934,88579.0,88578.0,0.0008464]
[1740532163503,0.3,88590.0,88578.0,0.0008464]
[1740532163730,0.16934,88579.0,88578.0,0.0008464]
[1740532164559,0.225778,88583.0,88578.0,0.0068464]
[1740532164757,0.16934,88580.0,88578.0,0.0068464]
[1740532164977,0.16934,88580.0,88578.0,0.0008464]
[1740532165180,0.16934,88580.0,88578.0,0.0058464]
[1740532165379,0.169336,88581.0,88578.0,0.0058464]
[1740532165581,0.169336,88581.0,88578.0,0.0008464]
[1740532166718,0.00054943,88592.0,88578.0,0.0008464]
[1740532167046,0.00054943,88592.0,88580.0,0.076]
[1740532167200,0.169325,88587.0,88581.0,0.00768464]
[1740532167394,0.3,88590.0,88581.0,0.00768464]
[1740532167395,0.169327,88586.0,88581.0,0.01959933]
[1740532167756,0.225766,88588.0,88581.0,0.00768464]
[1740532167992,0.169333,88583.0,88582.0,0.0084531]
[1740532168194,0.225766,88588.0,88582.0,0.0084531]
[1740532168717,0.00054943,88592.0,88582.0,0.0084531]
[1740532168718,0.169332,88583.0,88582.0,0.0084531]
[1740532168913,0.169334,88582.0,88581.0,0.003]
[1740532169894,0.525752,88593.0,88581.0,0.003]
[1740532170118,0.169338,88581.0,88578.0,0.0008464]
[1740532170718,0.169337,88581.0,88578.0,0.0008464]
[1740532171190,0.169334,88582.0,88581.0,0.001]
[1740532171392,0.16934,88579.0,88578.0,0.0008464]
[1740532171775,0.16934,88579.0,88578.0,0.0058464]
[1740532173283,0.169335,88582.0,88578.0,0.0058464]
[1740532173486,0.169336,88582.0,88578.0,0.0058464]
[1740532173889,0.169336,88581.0,88578.0,0.0008464]
[1740532174032,0.225756,88591.0,88578.0,0.0008464]
[1740532174033,0.169335,88582.0,88578.0,0.0008464]
[1740532174233,0.225756,88591.0,88578.0,0.0058464]
[1740532174428,0.3,88590.0,88578.0,0.0058464]
[1740532174633,0.3,88586.0,88579.0,0.02316464]
[1740532174872,0.3,88586.0,88579.0,0.03355782]
[1740532175278,0.3,88586.0,88580.0,0.0768]
[1740532175696,0.3,88588.0,88580.0,0.0768]
[1740532175880,0.469323,88588.0,88580.0,0.0768]
[1740532176270,0.469323,88588.0,88581.0,0.01038887]
[1740532176511,0.169328,88585.0,88581.0,0.01038887]
[1740532176718,0.3,88585.0,88582.0,0.00880353]
[1740532177222,0.469328,88585.0,88582.0,0.00880353]
[1740532177434,0.169332,88583.0,88582.0,0.00880353]
[1740532178403,0.169332,88583.0,88582.0,0.01280353]
[1740532178620,0.225774,88584.0,88582.0,0.00880353]
[1740532178821,0.16933,88584.0,88583.0,0.00864499]
[1740532181256,0.16933,88584.0,88583.0,0.01264499]
[1740532184205,0.46933,88584.0,88583.0,0.004]
[1740532184417,0.46933,88584.0,88583.0,0.003]
[1740532185012,0.16934,88579.0,88578.0,0.0008464]
[1740532185215,0.9233014,88579.0,88578.0,4e-07]
[1740532185419,0.169399,88548.0,88547.0,0.0808]
[1740532185615,0.31454085,88570.0,88532.0,0.1258]
[1740532185822,0.09034903,88571.0,88547.0,0.01047243]
[1740532186048,0.09034903,88571.0,88533.0,0.0451747]
[1740532186049,0.169426,88534.0,88533.0,0.0451747]
[1740532186219,0.169428,88533.0,88532.0,0.1258]
[1740532186623,0.16943,88532.0,88525.0,0.0762]
[1740532186824,0.16943,88532.0,88531.0,0.00126663]
[1740532188172,0.16943,88532.0,88531.0,0.00726663]
[1740532188360,0.17143,88532.0,88531.0,0.00126663]
[1740532188785,0.17143,88532.0,88531.0,0.00326663]
[1740532189898,0.19978288,88532.0,88531.0,0.00326663]
[1740532192869,0.525899,88535.0,88531.0,0.00326663]
[1740532192994,0.16943,88532.0,88531.0,0.00326663]
[1740532194871,0.1988612,88532.0,88531.0,0.00326663]
[1740532195091,0.0314312,88532.0,88531.0,0.00326663]
[1740532195288,0.002,88532.0,88531.0,0.07956663]
[1740532195518,0.002,88532.0,88531.0,0.26170529]
[1740532195655,0.002,88532.0,88531.0,0.27139336]
[1740532196448,0.002,88532.0,88531.0,0.09996136]
[1740532196857,0.002,88532.0,88531.0,0.10596136]
[1740532197058,0.02941683,88540.0,88531.0,0.10596136]
[1740532197284,0.169413,88541.0,88532.0,0.03229004]
[1740532197490,0.3,88562.0,88532.0,0.03229004]
[1740532197660,0.3,88548.0,88537.0,0.16942]
[1740532198043,0.3,88548.0,88538.0,0.00971272]
[1740532198565,0.32821232,88548.0,88538.0,0.00971272]
[1740532198781,0.02821232,88548.0,88539.0,0.0447369]
[1740532198969,0.001,88548.0,88539.0,0.0447369]
[1740532199327,0.225871,88546.0,88531.0,0.07756663]
[1740532199684,0.169416,88539.0,88538.0,0.002]
[1740532199917,0.525863,88549.0,88538.0,0.002]
[1740532200109,0.169418,88539.0,88531.0,0.07756663]
[1740532200312,0.169418,88539.0,88532.0,0.02945086]
[1740532200775,0.3,88551.0,88532.0,0.02945086]
[1740532200978,0.03031006,88548.0,88531.0,0.07756663]
[1740532201485,0.02831006,88548.0,88539.0,0.169415]
[1740532201784,0.169394,88551.0,88537.0,0.16942]
[1740532202137,0.02870964,88553.0,88539.0,0.001]
[1740532202316,0.169414,88540.0,88539.0,0.001]
[1740532202489,0.169422,88537.0,88531.0,0.07756663]
[1740532202699,0.169422,88537.0,88532.0,0.01250666]
[1740532202872,0.225873,88546.0,88532.0,0.01250666]
[1740532203298,0.169428,88533.0,88532.0,0.01250666]
[1740532203822,0.16942,88538.0,88532.0,0.01250666]
[1740532204024,0.225866,88548.0,88532.0,0.01250666]
[1740532204025,0.225866,88548.0,88533.0,0.01375733]
[1740532204652,0.225868,88547.0,88533.0,0.01375733]